[Event "Memorial Ukrainian Chess Warriors 2024"]
[Site "Lviv"]
[Date "2024.03.15"]
[Round "8.15"]
[White "Vinogradnik, Vladimir"]
[Black "Semenov, Dmytro"]
[Result "1-0"]
[ECO "C91"]
[WhiteElo "2036"]
[BlackElo "2370"]
[Annotator "TA"]
[PlyCount "91"]
[EventDate "2024.03.06"]
[EventType "swiss"]
[EventCountry "UKR"]
[SourceTitle "playchess.com"]
[Source "ChessBase"]
[SourceQuality "1"]
[TimeControl "600+5"]

{[%evp 21,91,0,1,0,-6,-5,-10,-14,0,-5,0,0,0,0,26,-39,-47,-75,-28,-19,0,0,0,0,0,0,0,0,5,0,5,0,16,0,0,0,0,0,129,122,239,238,281,141,359,272,266,266,242,225,229,195,189,181,179,180,541,541,497,457,787,787,29981,29982,29982,29983,29992,29993,29993,29994,29994,29995]} 1. e4 {[%emt 0:00:02]} e5 {[%emt 0:00:02]} 2. Nf3 {[%emt 0:00:04]} Nc6 {[%emt 0:00:01]} 3. Bb5 {[%emt 0:00:06]} a6 {[%emt 0:00:01]} 4. Ba4 {[%emt 0:00:04]} Nf6 {[%emt 0:00:03]} 5. O-O {[%emt 0:00:04]} b5 {[%emt 0:00:05]} 6. Bb3 {[%emt 0:00:02]} Be7 {[%emt 0:00:01]} 7. Re1 {[%emt 0:00:08]} O-O {[%emt 0:00:02]} 8. d4 {[%emt 0:00:24]} d6 {[%emt 0:02:08]} 9. c3 {[%emt 0:00:03]} Bg4 {[%emt 0:00:08]} 10. d5 {[%emt 0:00:05]} Na5 {[%emt 0:00:32]} 11. Bc2 {[%emt 0:00:03]} c6 {[%emt 0:00:23]} 12. b4 {[%emt 0:00:09]} Nc4 {[%emt 0:00:03]} 13. dxc6 {[%emt 0:00:07]} Qc7 14. h3 {[%emt 0:01:37] Die Stellung ist ausgeglichen.} Be6 {[%emt 0:00:56][%cal Oa6a5]} 15. Ng5 {[%emt 0:00:17]} Qxc6 {[%emt 0:00:17]} 16. Nxe6 {[%emt 0:00:05]} fxe6 {[%emt 0:00:02]} 17. Nd2 {[%emt 0:00:18]} Bd8 {[%emt 0:03:11]} 18. Bb3 {[%emt 0:00:13]} (18. a4 $11) 18... Bb6 $15 {[%emt 0:00:09]} 19. Qe2 {[%emt 0:00:20][%cal Rd2c4] [#]} Nh5 $1 {[%emt 0:00:59] Ein dynamisches Springerpaar.} 20. Nf3 $11 {[%emt 0:00:46]} Nf4 {[%emt 0:00:28]} (20... Ng3 {sieht schärfer aus.} 21. Qc2 d5 22. exd5 exd5 23. Bxc4 Qxc4 24. Nxe5 Rae8) 21. Bxf4 {[%emt 0:00:09]} Rxf4 {[%emt 0:00:01]} 22. Bxc4 {[%emt 0:00:13]} bxc4 {[%emt 0:00:02]} 23. a4 {[%emt 0:00:19]} Raf8 {[%emt 0:00:11]} 24. Rad1 {[%emt 0:00:23]} Bc7 {[%emt 0:01:13]} 25. Rd2 {[%emt 0:00:29]} h6 {[%emt 0:00:24]} 26. Rb2 {[%emt 0:00:40]} g5 {[%emt 0:00:03]} 27. b5 {[%emt 0:00:09]} axb5 {[%emt 0:00:01]} 28. axb5 {[%emt 0:00:02]} Qc5 {[%emt 0:00:19]} 29. Qe3 $36 {[%emt 0:00:15][%mdl 2048] Weiss drückt.} Qa3 {[%emt 0:00:23]} (29... Qxe3 $11 {hält das Gleichgewicht.} 30. Rxe3 Bb6) 30. Reb1 $16 {[%emt 0:00:15]} Ba5 {[%emt 0:00:09] [#]} (30... Bb8 $16 31. b6 Kg7) 31. b6 $1 $18 {[%emt 0:00:19] Droht stark b7.} Rb8 {[%emt 0:00:08]} (31... Bxc3 $2 32. Rc2 Bb4 33. Rxc4 $18) 32. b7 {[%emt 0:00:29]} ({Günstiger ist} 32. Rb5 $18) 32... Bc7 $2 {[%emt 0:00:00] Das kostet Schwarz die Partie.} (32... Qxc3 $16 33. Qa7 Bc7) 33. Rb4 {[%emt 0:00:17] h4 wäre nun fies.} Qa6 {[%emt 0:00:06]} 34. Qe2 {[%emt 0:00:12]} d5 {[%emt 0:00:07]} 35. exd5 exd5 36. Qd2 {[%emt 0:00:36]} ({Lieber nicht} 36. Nxe5 Qe6 (36... Re4 37. Qd1 $17) 37. g3 Re4 $17 (37... Qxe5 $2 38. Qxe5 Bxe5 39. gxf4 $18)) 36... Qd6 {[%emt 0:00:01]} 37. Rb5 {[%emt 0:00:15]} d4 {[%emt 0:00:06]} 38. Nxe5 {[%emt 0:00:09]} Re4 (38... d3 {ist eine bessere Chance.}) 39. cxd4 {[%emt 0:01:11]} (39. Nxc4 $2 {führt zum Matt.} Qh2+ 40. Kf1 Qh1#) 39... Rxd4 {[%emt 0:00:03]} 40. Qe2 {[%emt 0:00:03]} Re8 {[%emt 0:00:18]} (40... Qe6 $142 41. Re1 g4 42. hxg4 (42. Nxg4 $2 {ist das falsche Schlagen.} Qxe2 43. Rbb1 Rxb7 $19) 42... Re8) 41. Qh5 {[%emt 0:00:31]} Rf8 {[%emt 0:00:05] [#] Pariert Qf7+.} 42. b8=Q $1 {[%emt 0:00:14][%mdl 512] Weiß setzt Matt.} Bxb8 {[%emt 0:00:02] [#]} 43. Rxb8 $1 {[%emt 0:00:01][%mdl 512]} Qxe5 {[%emt 0:00:11]} (43... Rdf4 44. R1b6) 44. Qg6+ {[%emt 0:00:08]} Qg7 {[%emt 0:00:01]} 45. Rxf8+ {[%emt 0:00:03]} Kxf8 {[%emt 0:00:01]} 46. Rb8+ {[%emt 0:00:02] Gewichteter Fehlerwert: Weiß=0.16 (sehr präzise) /Schwarz=0.56.  Verlustzug:     	---       	Schwarz=1     Fehler:       	Weiß=2     	Schwarz=5     Ungenau:       	Weiß=1     	Schwarz=2     OK:         	Weiß=13    	Schwarz=8     Bester:       	Weiß=1     	---        Stark:        	Weiß=1     	---} 1-0

[Event "Memorial Ukrainian Chess Warriors 2024"]
[Site "Lviv"]
[Date "2024.03.15"]
[Round "8.16"]
[White "Podolskyi, Mykhailo"]
[Black "Zakordonets, Olexandr"]
[Result "1-0"]
[ECO "A57"]
[WhiteElo "2331"]
[BlackElo "1963"]
[Annotator "TA"]
[PlyCount "73"]
[EventDate "2024.03.06"]
[EventType "swiss"]
[EventCountry "UKR"]
[SourceTitle "playchess.com"]
[Source "ChessBase"]
[SourceQuality "1"]
[TimeControl "600+5"]

{[%evp 13,73,1,-28,-66,0,-8,2,-22,-14,-16,-19,-7,10,-42,0,-14,25,17,38,20,81,78,83,65,95,87,85,104,145,141,181,166,212,199,227,181,292,248,523,562,563,510,567,620,748,741,850,842,1080,1078,1278,1270,2085,2077,2043,1685,29984,29985,29990,29991,29991,29992]} 1. d4 {[%emt 0:00:02]} Nf6 {[%emt 0:00:01]} 2. c4 {[%emt 0:00:01]} c5 {[%emt 0:00:01]} 3. d5 {[%emt 0:00:02]} b5 {[%emt 0:00:01]} 4. cxb5 {[%emt 0:00:01]} a6 {[%emt 0:00:01][%cal Ba7a6,Ba6b5,Bb5b4][%mdl 32]} 5. Nc3 {[%emt 0:00:01]} axb5 {[%emt 0:00:02]} 6. e4 {[%emt 0:00:01]} b4 {[%emt 0:00:09]} 7. Nb5 {[%emt 0:00:02]} d6 {[%emt 0:00:01]} 8. a4 {[%emt 0:00:03]} g6 {[%emt 0:00:25]} (8... Nxe4 $15 9. Bc4 Nf6) 9. Bd3 $11 {[%emt 0:00:42]} Bg7 {[%emt 0:00:02]} 10. Qc2 {[%emt 0:00:12] The position is equal.} Nbd7 {[%emt 0:00:35]} 11. Nf3 {[%emt 0:00:14]} O-O {[%emt 0:00:11]} 12. O-O {[%emt 0:00:04]} Ng4 {[%emt 0:01:22]} 13. Nd2 {[%emt 0:02:18]} ({White should try} 13. Bf4 $11) 13... Ba6 {[%emt 0:00:27]} (13... Nge5 $5 14. Be2 $8 Nb6 $11) 14. Be2 {[%emt 0:00:34][%cal Oa1b1]} Ngf6 {[%emt 0:00:22]} (14... Nb6 $5) 15. Rb1 {[%emt 0:00:19]} Nb6 {[%emt 0:00:54][%cal Ob6a4]} 16. b3 {[%emt 0:00:18]} e6 {[%emt 0:00:41]} (16... Ne8 $11 {keeps the balance.}) 17. dxe6 $16 {[%emt 0:00:34] Black is on the road to losing.} fxe6 {[%emt 0:00:01]} 18. Bb2 {[%emt 0:00:13]} Qe7 {[%emt 0:00:25]} 19. e5 {[%emt 0:01:05]} dxe5 {[%emt 0:00:16]} 20. Bxe5 {[%emt 0:00:02] aiming for Bd6.} Bxb5 {[%emt 0:00:09]} 21. Bxb5 {[%emt 0:00:06]} Nfd5 {[%emt 0:00:06]} 22. Bxg7 {[%emt 0:00:13]} Kxg7 {[%emt 0:00:03]} (22... Qxg7 {is a better defense.} 23. Qxc5 Rfd8) 23. Ne4 $18 {[%emt 0:00:26]} Rac8 {[%emt 0:01:25]} 24. Rbc1 {[%emt 0:00:33]} Rf4 {[%emt 0:00:40]} (24... Nf6 $142 25. Rce1 (25. Nxc5 Nbd5 $15) 25... Nbd5) 25. Rfe1 {[%emt 0:00:24][%cal Bf1e1,Be1e6,Be6e7,Be7f7][%mdl 32]} (25. Nxc5 Nc3 26. Qd2 e5 $14) 25... Rxe4 $2 {[%emt 0:01:40] [#]} (25... Kg8 {keeps fighting.} 26. Qd2 (26. Nxc5 e5 $18) 26... Rf5) 26. Qxe4 {[%emt 0:00:07]} Nc3 {[%emt 0:01:13]} 27. Qxe6 {[%emt 0:00:14]} Qxe6 {[%emt 0:00:01]} 28. Rxe6 {[%emt 0:00:01]} Nbd5 {[%emt 0:00:02]} 29. Bc4 {[%emt 0:00:15]} Nf4 {[%emt 0:00:01]} 30. Re7+ {[%emt 0:00:07]} Kf6 {[%emt 0:00:08]} 31. Rf7+ {[%emt 0:00:08]} (31. Rxh7 Nfe2+ 32. Kf1 Nxc1 33. Rf7+ Ke5 34. Re7+ Kd6 35. Re6+ Kd7 36. Rxg6 Rh8 37. Rg7+ Kc6 $11) 31... Kg5 {[%emt 0:00:01]} 32. Re1 {[%emt 0:00:22]} ({Stronger than} 32. Rxh7 Nfe2+ 33. Kh1 Nxc1 34. h4+ Kf6 35. Rf7+ Ke5 36. Re7+ Kd6 37. Re6+ Kc7 $11) 32... Nh5 {[%emt 0:00:05]} 33. a5 {[%emt 0:00:11][%cal Ba4a5,Ba5a6][%mdl 32]} Rd8 {[%emt 0:00:08]} 34. a6 {[%emt 0:00:13]} Rd2 {[%emt 0:00:10]} 35. g3 {[%emt 0:00:21] White mates.} Ra2 {[%emt 0:00:02]} 36. h4+ {[%emt 0:00:08]} Kh6 {[%emt 0:00:11]} 37. Ree7 {[%emt 0:00:02] Weighted Error Value: White=0.16 (very precise) /Black=0.51.  Mistake:       	White=1     	Black=5      Inaccurate:     	---       	Black=4      OK:         	White=9     	Black=2      Best:        	White=1     	---} 1-0

[Event "Memorial Ukrainian Chess Warriors 2024"]
[Site "Lviv"]
[Date "2024.03.15"]
[Round "8.17"]
[White "Smolkin, Alexander"]
[Black "Alexikov, Alexander"]
[Result "1-0"]
[ECO "B20"]
[WhiteElo "1957"]
[BlackElo "2183"]
[Annotator "RC"]
[PlyCount "57"]
[EventDate "2024.03.06"]
[EventType "swiss"]
[EventCountry "UKR"]
[SourceTitle "playchess.com"]
[Source "ChessBase"]
[SourceQuality "1"]
[TimeControl "600+5"]

1. e4 {[%emt 0:00:06]} c5 {[%emt 0:00:01]} 2. c4 {[%emt 0:00:02]} Nc6 {[%emt 0:00:02]} 3. Nc3 {[%emt 0:00:01]} g6 {[%emt 0:00:02]} 4. g3 {[%emt 0:00:02]} Bg7 {[%emt 0:00:01]} 5. Bg2 {[%emt 0:00:01]} e6 {[%emt 0:00:03]} 6. Nge2 {[%emt 0:00:02]} Nge7 {[%emt 0:00:02]} 7. d3 {[%emt 0:00:02]} a6 {[%emt 0:00:13]} 8. Be3 {[%emt 0:00:03]} Nd4 {[%emt 0:00:01]} 9. Qd2 {[%emt 0:00:08]} O-O {[%emt 0:00:05]} 10. h4 {[%emt 0:00:03]} h5 {[%emt 0:00:16]} 11. g4 {[%emt 0:00:02]} hxg4 {[%emt 0:00:07]} 12. h5 {[%emt 0:00:02]} f5 {[%emt 0:02:42]} 13. Bg5 {[%emt 0:02:05]} Qe8 {[%emt 0:00:28]} 14. Nf4 {[%emt 0:00:47]} e5 {[%emt 0:02:22]} 15. Bxe7 {[%emt 0:00:05]} exf4 {[%emt 0:00:05]} 16. Bxf8 {[%emt 0:00:05]} f3 {[%emt 0:00:00]} 17. Bf1 {[%emt 0:02:24]} Kxf8 {[%emt 0:01:58]} 18. h6 {[%emt 0:00:30]} Bh8 {[%emt 0:00:06]} 19. h7 {[%emt 0:00:11]} d6 {[%emt 0:00:41]} 20. O-O-O {[%emt 0:00:23]} Kf7 {[%emt 0:00:41]} 21. Nd5 {[%emt 0:00:18]} b5 {[%emt 0:00:34]} 22. Re1 {[%emt 0:00:13]} Be6 {[%emt 0:01:05]} 23. Nc7 {[%emt 0:00:21]} Qc8 {[%emt 0:00:03]} 24. Nxa8 {[%emt 0:00:03]} Qxa8 {[%emt 0:00:04]} 25. Qf4 {[%emt 0:00:23]} Qc6 {[%emt 0:00:12]} 26. exf5 {[%emt 0:00:21]} Bxf5 {[%emt 0:00:01]} 27. Qg5 {[%emt 0:00:18]} Qb7 {[%emt 0:00:02]} 28. Qd8 {[%emt 0:00:08]} Qc8 {[%emt 0:00:07]} 29. Qe7# 1-0

[Event "Memorial Ukrainian Chess Warriors 2024"]
[Site "Lviv"]
[Date "2024.03.15"]
[Round "8.18"]
[White "Bykovskiy, Oleg"]
[Black "Tarleva, Vira"]
[Result "0-1"]
[ECO "B67"]
[WhiteElo "2231"]
[BlackElo "2030"]
[Annotator "TA"]
[PlyCount "68"]
[EventDate "2024.03.06"]
[EventType "swiss"]
[EventCountry "UKR"]
[SourceTitle "playchess.com"]
[Source "ChessBase"]
[SourceQuality "1"]
[TimeControl "600+5"]

{[%evp 16,67,42,25,25,39,26,25,21,0,15,10,65,68,101,99,96,96,186,179,195,186,184,193,242,235,255,285,247,311,822,791,823,818,775,323,310,141,167,166,342,-370,-364,-362,-363,-444,-331,-29987,-29988,-29994,-29995,-29995,-29996,-29999]} 1. e4 {[%emt 0:00:01]} c5 {[%emt 0:00:01]} 2. Nf3 {[%emt 0:00:01]} d6 {[%emt 0:00:26]} 3. d4 {[%emt 0:00:01]} cxd4 {[%emt 0:00:01]} 4. Nxd4 {[%emt 0:00:01]} Nf6 {[%emt 0:00:01]} 5. Nc3 {[%emt 0:00:01]} Nc6 {[%emt 0:00:04]} 6. Bg5 {[%emt 0:00:18]} e6 {[%emt 0:00:06]} 7. Qd2 {[%emt 0:00:46]} a6 {[%emt 0:00:06]} 8. O-O-O {[%emt 0:00:06]} Bd7 {[%emt 0:00:11]} 9. Kb1 {[%emt 0:00:30]} b5 {[%emt 0:00:29][%cal Bb7b5,Bb5b4][%mdl 32]} 10. Nxc6 {[%emt 0:00:12]} Bxc6 {[%emt 0:00:01]} 11. Qe3 {[%emt 0:00:16]} Be7 {[%emt 0:01:37] White has an edge.} 12. f4 {[%emt 0:02:32][%cal Bf2f4,Bf4f5][%mdl 32]} (12. Bxf6 $5 Bxf6 13. Nd5 $11) 12... Qc7 {[%emt 0:03:24]} 13. Bxf6 {[%emt 0:00:12]} gxf6 {[%emt 0:00:29]} (13... Bxf6 $11 14. Nd5 Bxd5 (14... exd5 15. exd5+ Kf8 16. dxc6 $16) 15. exd5 e5) 14. f5 $14 {[%emt 0:00:07]} b4 {[%emt 0:00:08]} 15. Ne2 {[%emt 0:00:01]} e5 {[%emt 0:00:04]} 16. Ng3 {[%emt 0:00:16]} Rc8 {[%emt 0:01:01]} (16... Bb7 $16 {was worth a try.}) 17. Bxa6 $18 {[%emt 0:01:25]} Ra8 {[%emt 0:00:35]} 18. Bc4 {[%emt 0:00:02]} Ba4 {[%emt 0:00:07]} 19. Bb3 {[%emt 0:00:01]} Bc6 {[%emt 0:00:35]} (19... Ra6 {might work better.} 20. Bxa4+ Rxa4) 20. Qd3 {[%emt 0:00:23]} O-O {[%emt 0:00:35]} 21. Nh5 {[%emt 0:00:38] [#] Qg3+ would kill now.} Kh8 {[%emt 0:00:01]} 22. Qe3 {[%emt 0:00:09]} Ba4 $2 {[%emt 0:00:35]} (22... Qd8 23. g4 Rc8) 23. Qh6 {[%emt 0:00:24]} Rg8 {[%emt 0:00:01] Wards off Qg7+} 24. Nxf6 {[%emt 0:00:05]} Rg7 {[%emt 0:00:17]} 25. Nd5 {[%emt 0:00:03]} (25. Bxa4 $142 Bxf6 26. Qxf6) 25... Qa7 {[%emt 0:00:27] ...Bxb3 is the strong threat.} 26. Bc4 {[%emt 0:02:08]} (26. Nxb4 Bxb3 27. cxb3 d5 $11) (26. Qe3 $18 Bxb3 27. Qxb3 Rxg2 28. Nxb4) 26... Bxc2+ {[%emt 0:00:01]} 27. Kxc2 {[%emt 0:00:03]} Rxg2+ $2 {[%emt 0:00:01]} (27... Qc5 {keeps fighting.} 28. Ne3 (28. Kb3 Qc6 $14) 28... Bg5 29. Qxd6 Bxe3 30. Qxc5 Rxg2+ 31. Kb3 Bxc5 32. Bxf7 Bd4) 28. Rd2 $4 {[%emt 0:00:45][%mdl 8192]} (28. Kb1 $18 {was the only winning move.} Qf2 29. Rd2 (29. Nxe7 $2 Qxb2#) (29. Qc1 $2 Bg5 $19) 29... Qxd2 30. Qxd2 Rxd2 31. Nxe7) 28... Bg5 $19 {[%emt 0:00:01]} 29. Rxg2 {[%emt 0:00:02]} Bxh6 {[%emt 0:00:01]} 30. Rhg1 {[%emt 0:00:04][%cal Od5f6] Nf6! would now be deadly.} Qd4 {[%emt 0:00:28]} 31. Nf6 $2 {[%emt 0:00:25] [#]} (31. Kb3 $19 Rc8 (31... Qxe4 $2 {too greedy.} 32. Rg8+ Rxg8 33. Rxg8+ Kxg8 34. Nf6+ Kg7 35. Nxe4 $18) 32. Ba6) 31... Qxc4+ {[%emt 0:00:04] Black mates.} 32. Kb1 {[%emt 0:00:01]} Qxa2+ {[%emt 0:00:02]} ({Worse is} 32... Rxa2 33. Rg8#) 33. Kc2 {[%emt 0:00:01]} Rc8+ {[%emt 0:00:05]} 34. Kd3 {[%emt 0:00:02]} Qc4# {[%emt 0:00:03] Weighted Error Value: White=0.71/Black=0.33.  Missed win:     	White=1     	---        Mistake:       	White=1     	Black=5      Inaccurate:     	---       	Black=1      OK:         	White=11    	Black=5      Best:        	White=1     	Black=2} 0-1

[Event "Memorial Ukrainian Chess Warriors 2024"]
[Site "Lviv"]
[Date "2024.03.15"]
[Round "8.19"]
[White "Dovgaliuk, Oleksandr"]
[Black "Velychko, Semen"]
[Result "1-0"]
[ECO "A45"]
[WhiteElo "1936"]
[BlackElo "1905"]
[Annotator "RC"]
[PlyCount "51"]
[EventDate "2024.03.06"]
[EventType "swiss"]
[EventCountry "UKR"]
[SourceTitle "playchess.com"]
[Source "ChessBase"]
[SourceQuality "1"]
[TimeControl "600+5"]

1. d4 {[%emt 0:00:02]} Nf6 {[%emt 0:00:01]} 2. Bg5 {[%emt 0:00:01]} Ne4 {[%emt 0:00:02]} 3. Bf4 {[%emt 0:00:02]} d5 {[%emt 0:00:01]} 4. e3 {[%emt 0:00:12]} g6 {[%emt 0:00:02]} 5. Nd2 {[%emt 0:00:04]} Bg7 {[%emt 0:00:03]} 6. Nxe4 {[%emt 0:00:04]} dxe4 {[%emt 0:00:01]} 7. c3 {[%emt 0:00:25]} O-O {[%emt 0:00:14]} 8. Qc2 {[%emt 0:00:02]} Bf5 {[%emt 0:00:04]} 9. h3 {[%emt 0:00:03]} h5 {[%emt 0:00:13]} 10. g4 {[%emt 0:00:15]} hxg4 {[%emt 0:00:05]} 11. hxg4 {[%emt 0:00:02]} Bxg4 {[%emt 0:00:02]} 12. Qxe4 {[%emt 0:00:02]} c6 {[%emt 0:00:26]} 13. Bxb8 {[%emt 0:00:07]} Qb6 {[%emt 0:04:37]} 14. Qxg4 {[%emt 0:04:06]} Qxb2 {[%emt 0:00:02]} 15. Qd1 {[%emt 0:00:06]} Qxc3+ {[%emt 0:00:07]} 16. Ke2 {[%emt 0:00:01]} Raxb8 {[%emt 0:00:07]} 17. Rc1 {[%emt 0:00:11]} Qa5 {[%emt 0:00:05]} 18. Qd2 {[%emt 0:00:02]} Qb5+ {[%emt 0:00:10]} 19. Ke1 {[%emt 0:00:04]} Qd5 {[%emt 0:00:02]} 20. f3 {[%emt 0:00:18]} Rfd8 {[%emt 0:00:02]} 21. Bc4 {[%emt 0:00:11]} Qg5 {[%emt 0:00:04]} 22. Nh3 {[%emt 0:00:14]} Qh5 {[%emt 0:00:04]} 23. Qg2 {[%emt 0:00:29]} Qa5+ {[%emt 0:00:13]} 24. Kf1 {[%emt 0:00:10]} e5 {[%emt 0:00:03]} 25. Qxg6 {[%emt 0:00:13]} Rd7 {[%emt 0:00:04]} 26. Ng5 {[%emt 0:00:05]} 1-0

[Event "Memorial Ukrainian Chess Warriors 2024"]
[Site "Lviv"]
[Date "2024.03.15"]
[Round "8.20"]
[White "Toroptseva, Yevheniia"]
[Black "Stolbov, Mikhail G."]
[Result "0-1"]
[ECO "B12"]
[WhiteElo "1923"]
[BlackElo "2205"]
[Annotator "RC"]
[PlyCount "68"]
[EventDate "2024.03.06"]
[EventType "swiss"]
[EventCountry "UKR"]
[SourceTitle "playchess.com"]
[Source "ChessBase"]
[SourceQuality "1"]
[TimeControl "600+5"]

1. e4 {[%emt 0:00:01]} c6 {[%emt 0:00:01]} 2. d4 {[%emt 0:00:01]} d5 {[%emt 0:00:01]} 3. e5 {[%emt 0:00:01]} c5 {[%emt 0:00:00]} 4. dxc5 {[%emt 0:00:01]} Nc6 {[%emt 0:00:01]} 5. Nf3 {[%emt 0:00:13]} Bg4 {[%emt 0:00:03]} 6. Bb5 {[%emt 0:00:04]} e6 {[%emt 0:00:03]} 7. Be3 {[%emt 0:00:08]} Nge7 {[%emt 0:00:05]} 8. c3 {[%emt 0:00:15]} a6 {[%emt 0:00:09]} 9. Ba4 {[%emt 0:00:39]} Qc7 {[%emt 0:00:06]} 10. Bd4 {[%emt 0:00:08]} Ng6 {[%emt 0:00:05]} 11. Bxc6+ {[%emt 0:00:28]} bxc6 {[%emt 0:00:07]} 12. Nbd2 {[%emt 0:00:15]} Be7 {[%emt 0:00:06]} 13. h3 {[%emt 0:00:17]} Bxf3 {[%emt 0:00:05]} 14. Nxf3 {[%emt 0:00:03]} O-O {[%emt 0:00:03]} 15. O-O {[%emt 0:00:04]} f6 {[%emt 0:00:12]} 16. Re1 {[%emt 0:00:50]} fxe5 {[%emt 0:00:03]} 17. Nxe5 {[%emt 0:00:07]} Nxe5 {[%emt 0:00:59]} 18. Bxe5 {[%emt 0:00:01]} Qd7 {[%emt 0:00:15]} 19. b4 {[%emt 0:00:17]} Rf5 {[%emt 0:00:07]} 20. Qd4 {[%emt 0:00:41]} Bf6 {[%emt 0:00:35]} 21. g4 {[%emt 0:00:37]} Bxe5 {[%emt 0:01:07]} 22. Rxe5 {[%emt 0:00:02]} Rf3 {[%emt 0:00:05]} 23. Rae1 {[%emt 0:00:30]} Re8 {[%emt 0:01:26]} 24. Kg2 {[%emt 0:00:12]} Qf7 {[%emt 0:00:11]} 25. R1e2 {[%emt 0:00:52]} Rf8 {[%emt 0:02:10]} 26. Rxe6 {[%emt 0:00:59]} h5 {[%emt 0:00:45]} 27. Rxc6 {[%emt 0:03:06]} hxg4 {[%emt 0:00:57]} 28. hxg4 {[%emt 0:00:02]} Rf4 {[%emt 0:00:12]} 29. Qe3 {[%emt 0:00:24]} Rxg4+ {[%emt 0:00:13]} 30. Kf1 {[%emt 0:00:07]} Re4 {[%emt 0:00:21]} 31. Qd2 {[%emt 0:00:46]} Rh4 {[%emt 0:00:51]} 32. Kg1 {[%emt 0:00:22]} Qf3 {[%emt 0:00:13]} 33. Qxd5+ {[%emt 0:00:09]} Qxd5 {[%emt 0:00:01]} 34. Rd6 {[%emt 0:00:02]} Rh1# {[%emt 0:00:01]} 0-1

[Event "Memorial Ukrainian Chess Warriors 2024"]
[Site "Lviv"]
[Date "2024.03.15"]
[Round "8.21"]
[White "Piuro, Vladyslav"]
[Black "Chub, Dmytro"]
[Result "1-0"]
[ECO "A40"]
[WhiteElo "2051"]
[BlackElo "1899"]
[Annotator "RC"]
[PlyCount "78"]
[EventDate "2024.03.06"]
[EventType "swiss"]
[EventCountry "UKR"]
[SourceTitle "playchess.com"]
[Source "ChessBase"]
[SourceQuality "1"]
[TimeControl "600+5"]

1. d4 {[%emt 0:00:02]} g6 {[%emt 0:00:03]} 2. Nf3 {[%emt 0:00:04]} Bg7 {[%emt 0:00:03]} 3. g3 {[%emt 0:00:02]} d6 {[%emt 0:00:11]} 4. Bg2 {[%emt 0:00:02]} Nf6 {[%emt 0:00:12]} 5. O-O {[%emt 0:00:10]} Nbd7 {[%emt 0:00:09]} 6. Nc3 {[%emt 0:00:02]} O-O {[%emt 0:00:10]} 7. e4 {[%emt 0:00:01]} e5 {[%emt 0:00:20]} 8. h3 {[%emt 0:00:27]} c6 {[%emt 0:01:05]} 9. Re1 {[%emt 0:00:16]} Qb6 {[%emt 0:00:39]} 10. dxe5 {[%emt 0:01:10]} Nxe5 {[%emt 0:01:56]} 11. a4 {[%emt 0:01:23]} Nxf3+ {[%emt 0:00:48]} 12. Qxf3 {[%emt 0:00:02]} Be6 {[%emt 0:00:21]} 13. a5 {[%emt 0:00:12]} Qc7 {[%emt 0:00:38]} 14. Bg5 {[%emt 0:00:13]} Nd7 {[%emt 0:00:05]} 15. Qf4 {[%emt 0:00:40]} Ne5 {[%emt 0:00:16]} 16. Bf6 {[%emt 0:00:26]} Rfe8 {[%emt 0:00:29]} 17. Bxg7 {[%emt 0:00:05]} Kxg7 {[%emt 0:00:02]} 18. h4 {[%emt 0:00:05]} h5 {[%emt 0:00:16]} 19. b3 {[%emt 0:00:34]} Qe7 {[%emt 0:00:12]} 20. Rad1 {[%emt 0:00:34]} Rad8 {[%emt 0:00:09]} 21. Qe3 {[%emt 0:00:12]} a6 {[%emt 0:00:15]} 22. f4 {[%emt 0:00:44]} Ng4 {[%emt 0:00:06]} 23. Qd4+ {[%emt 0:00:02]} Qf6 {[%emt 0:00:15]} 24. Qxf6+ {[%emt 0:00:01]} Kxf6 {[%emt 0:00:08]} 25. Rd3 {[%emt 0:00:29]} d5 {[%emt 0:01:05]} 26. exd5 {[%emt 0:00:05]} Bf5 {[%emt 0:00:17]} 27. Ne4+ {[%emt 0:01:07]} Bxe4 {[%emt 0:00:06]} 28. Rxe4 {[%emt 0:00:01]} cxd5 {[%emt 0:00:37]} 29. Rxe8 {[%emt 0:00:05]} Rxe8 {[%emt 0:00:02]} 30. Bxd5 {[%emt 0:00:23]} Re1+ {[%emt 0:00:28]} 31. Kg2 {[%emt 0:00:01]} Re2+ {[%emt 0:00:39]} 32. Kf1 {[%emt 0:00:06]} Rxc2 {[%emt 0:00:09]} 33. Bxb7 {[%emt 0:00:04]} Rc5 {[%emt 0:00:26]} 34. b4 {[%emt 0:00:08]} Rb5 {[%emt 0:00:05]} 35. Rd6+ {[%emt 0:00:02]} Ke7 {[%emt 0:00:06]} 36. Rb6 {[%emt 0:00:01]} Rxb6 37. axb6 Ne3+ 38. Ke2 Nc4 39. Bxa6 Nxb6 1-0